[Event "Titled Tuesday Blitz May 25 2021"]
[White "Tarasova, Viktoriya"]
[Black "Herrera Reyes, Jose Antonio"]
[WhiteFideId "4175840"]
[BlackFideId "2274914"]
[WhiteElo "2182"]
[BlackElo "2370"]
[Result "0-1"]
[Round "10"]
[TimeControl "180+1"]
[Date "2021.05.25"]
[WhiteClock "0:00:15"]
[BlackClock "0:00:20"]

1. d4 {[%clk 0:03:00]}  Nf6 {[%clk 0:02:59]} 2. c4 {[%clk 0:03:01]}  c5 {[%clk 0:02:59]} 3. d5 {[%clk 0:03:01]}  b5 {[%clk 0:02:59]} 4. cxb5 {[%clk 0:03:00]}  a6 {[%clk 0:02:59]} 5. bxa6 {[%clk 0:03:00]}  g6 {[%clk 0:02:59]} 6. Nc3 {[%clk 0:03:00]}  Bg7 {[%clk 0:02:58]} 7. e4 {[%clk 0:03:00]}  O-O {[%clk 0:02:58]} 8. a7 {[%clk 0:03:00]}  Rxa7 {[%clk 0:02:58]} 9. a4 {[%clk 0:02:58]}  Qa5 {[%clk 0:02:52]} 10. Bd2 {[%clk 0:02:58]}  Qb6 {[%clk 0:02:52]} 11. Qc2 {[%clk 0:02:53]}  Na6 {[%clk 0:02:50]} 12. Nb5 {[%clk 0:02:53]}  Ra8 {[%clk 0:02:50]} 13. Bc4 {[%clk 0:02:32]}  Nb4 {[%clk 0:02:45]} 14. Qb1 {[%clk 0:02:26]}  e6 {[%clk 0:02:41]} 15. dxe6 {[%clk 0:02:06]}  fxe6 {[%clk 0:02:40]} 16. Nf3 {[%clk 0:01:59]}  d5 {[%clk 0:02:40]} 17. exd5 {[%clk 0:01:48]}  exd5 {[%clk 0:02:40]} 18. Be2 {[%clk 0:01:48]}  Re8 {[%clk 0:02:40]} 19. Qd1 {[%clk 0:01:42]}  Nd3+ {[%clk 0:02:31]} 20. Kf1 {[%clk 0:01:41]}  Nxb2 {[%clk 0:02:24]} 21. Qb3 {[%clk 0:01:39]}  Nc4 {[%clk 0:01:59]} 22. Bxc4 {[%clk 0:01:31]}  dxc4 {[%clk 0:02:00]} 23. Qxc4+ {[%clk 0:01:32]}  Be6 {[%clk 0:01:59]} 24. Qc2 {[%clk 0:01:28]}  Qxb5+ {[%clk 0:01:23]} 25. axb5 {[%clk 0:01:26]}  Rxa1+ {[%clk 0:01:24]} 26. Ne1 {[%clk 0:01:24]}  Ra2 {[%clk 0:01:09]} 27. Qc1 {[%clk 0:01:13]}  Ne4 {[%clk 0:01:06]} 28. Be3 {[%clk 0:01:08]}  c4 {[%clk 0:01:03]} 29. Nc2 {[%clk 0:01:02]}  c3 {[%clk 0:01:00]} 30. f3 {[%clk 0:00:59]}  Bc4+ {[%clk 0:00:59]} 31. Kg1 {[%clk 0:00:55]}  Nd6 {[%clk 0:00:47]} 32. Kf2 {[%clk 0:00:47]}  Bd3 {[%clk 0:00:46]} 33. Rd1 {[%clk 0:00:41]}  Rxc2+ {[%clk 0:00:46]} 34. Qxc2 {[%clk 0:00:40]}  Bxc2 {[%clk 0:00:47]} 35. Rxd6 {[%clk 0:00:40]}  Bf5 {[%clk 0:00:44]} 36. b6 {[%clk 0:00:39]}  c2 {[%clk 0:00:44]} 37. Rc6 {[%clk 0:00:39]}  Rb8 {[%clk 0:00:32]} 38. g4 {[%clk 0:00:37]}  Bd3 {[%clk 0:00:31]} 39. Ke1 {[%clk 0:00:33]}  Bb2 {[%clk 0:00:23]} 40. Bf4 {[%clk 0:00:21]}  Rb7 {[%clk 0:00:20]} 41. Be3 {[%clk 0:00:20]}  Kf7 {[%clk 0:00:20]} 42. Rc7+ {[%clk 0:00:19]}  Rxc7 {[%clk 0:00:20]} 43. bxc7 {[%clk 0:00:19]}  Ba6 {[%clk 0:00:20]} 44. h4 {[%clk 0:00:12]}  c1=Q+ {[%clk 0:00:20]} 45. Bxc1 {[%clk 0:00:13]}  Bxc1 {[%clk 0:00:20]} 46. Kf2 {[%clk 0:00:13]}  Bf4 {[%clk 0:00:21]} 47. c8=Q {[%clk 0:00:12]}  Bxc8 {[%clk 0:00:19]} 48. Kg2 {[%clk 0:00:13]}  g5 {[%clk 0:00:19]} 49. Kh3 {[%clk 0:00:12]}  Kg6 {[%clk 0:00:18]} 50. h5+ {[%clk 0:00:12]}  Kf7 {[%clk 0:00:18]} 51. Kg2 {[%clk 0:00:13]}  h6 {[%clk 0:00:18]} 52. Kf2 {[%clk 0:00:13]}  Ke6 {[%clk 0:00:19]} 53. Kg2 {[%clk 0:00:14]}  Kd5 {[%clk 0:00:19]} 54. Kf2 {[%clk 0:00:14]}  Kd4 {[%clk 0:00:20]} 55. Kg2 {[%clk 0:00:14]}  Bb7 {[%clk 0:00:20]} 56. Kf2 {[%clk 0:00:15]}  Kd3 {[%clk 0:00:21]} 57. Kg2 {[%clk 0:00:15]}  Ke2 {[%clk 0:00:22]} 58. Kh3 {[%clk 0:00:16]}  Bc1 {[%clk 0:00:20]} 59. Kg2 {[%clk 0:00:15]}  Bxf3+ {[%clk 0:00:20]} 60. Kh3 {[%clk 0:00:16]}  Kf2 {[%clk 0:00:19]} 61. Kh2 {[%clk 0:00:16]}  Bf4+ {[%clk 0:00:19]} 62. Kh3 {[%clk 0:00:15]}  Bg2# {[%clk 0:00:20]} 0-1


[Site "https://www.chess.com"]

[Event "Titled Tuesday Blitz May 25 2021"]
[White "Terry, Renato"]
[Black "Kamsky, Gata"]
[WhiteFideId "3803457"]
[BlackFideId "2000024"]
[WhiteElo "2581"]
[BlackElo "2644"]
[Result "0-1"]
[Round "10"]
[TimeControl "180+1"]
[Date "2021.05.25"]
[WhiteClock "0:00:18"]
[BlackClock "0:01:19"]

1. e4 {[%clk 0:03:00]}  c5 {[%clk 0:02:57]} 2. Nf3 {[%clk 0:03:00]}  e6 {[%clk 0:02:58]} 3. Nc3 {[%clk 0:03:00]}  a6 {[%clk 0:02:57]} 4. g3 {[%clk 0:03:00]}  b5 {[%clk 0:02:57]} 5. Bg2 {[%clk 0:03:01]}  Bb7 {[%clk 0:02:58]} 6. d3 {[%clk 0:03:02]}  d6 {[%clk 0:02:56]} 7. O-O {[%clk 0:03:02]}  Be7 {[%clk 0:02:56]} 8. Be3 {[%clk 0:02:59]}  Nf6 {[%clk 0:02:54]} 9. Ng5 {[%clk 0:02:57]}  h6 {[%clk 0:02:52]} 10. Nh3 {[%clk 0:02:57]}  Nc6 {[%clk 0:02:51]} 11. f4 {[%clk 0:02:53]}  d5 {[%clk 0:02:43]} 12. e5 {[%clk 0:02:53]}  Nd7 {[%clk 0:02:40]} 13. Bd2 {[%clk 0:02:35]}  Nd4 {[%clk 0:02:36]} 14. Ne2 {[%clk 0:02:32]}  Nf5 {[%clk 0:02:32]} 15. c3 {[%clk 0:01:45]}  Qb6 {[%clk 0:02:27]} 16. Qe1 {[%clk 0:01:42]}  d4 {[%clk 0:02:20]} 17. Bxb7 {[%clk 0:01:35]}  Qxb7 {[%clk 0:02:20]} 18. cxd4 {[%clk 0:01:36]}  cxd4 {[%clk 0:02:19]} 19. Qf2 {[%clk 0:01:29]}  Nc5 {[%clk 0:02:16]} 20. Qf3 {[%clk 0:01:30]}  Qxf3 {[%clk 0:02:12]} 21. Rxf3 {[%clk 0:01:30]}  Na4 {[%clk 0:02:05]} 22. b3 {[%clk 0:01:27]}  Nb6 {[%clk 0:02:05]} 23. g4 {[%clk 0:01:21]}  Nh4 {[%clk 0:02:04]} 24. Rg3 {[%clk 0:01:21]}  Nd5 {[%clk 0:02:01]} 25. Rc1 {[%clk 0:01:12]}  Kd7 {[%clk 0:01:59]} 26. Kf2 {[%clk 0:01:04]}  Ba3 {[%clk 0:01:57]} 27. Rc2 {[%clk 0:00:47]}  Rac8 {[%clk 0:01:57]} 28. Nxd4 {[%clk 0:00:48]}  Bc5 {[%clk 0:01:54]} 29. Rxc5 {[%clk 0:00:48]}  Rxc5 {[%clk 0:01:53]} 30. Ng1 {[%clk 0:00:45]}  Ng6 {[%clk 0:01:51]} 31. Nge2 {[%clk 0:00:45]}  h5 {[%clk 0:01:45]} 32. h3 {[%clk 0:00:40]}  hxg4 {[%clk 0:01:44]} 33. hxg4 {[%clk 0:00:41]}  Rcc8 {[%clk 0:01:40]} 34. Kf3 {[%clk 0:00:24]}  Rh2 {[%clk 0:01:36]} 35. Ke4 {[%clk 0:00:18]}  Rc2 {[%clk 0:01:19]} 0-1


[Site "https://www.chess.com"]

[Event "Titled Tuesday Blitz May 25 2021"]
[White "Timofeev, Artyom"]
[Black "Salem, A.R. Saleh"]
[WhiteFideId "4140419"]
[BlackFideId "9301348"]
[WhiteElo "2582"]
[BlackElo "2659"]
[Result "0-1"]
[Round "10"]
[TimeControl "180+1"]
[Date "2021.05.25"]
[WhiteClock "0:00:02"]
[BlackClock "0:00:08"]

1. c4 {[%clk 0:03:00]}  e6 {[%clk 0:02:57]} 2. Nf3 {[%clk 0:03:00]}  d5 {[%clk 0:02:57]} 3. e3 {[%clk 0:02:59]}  Nf6 {[%clk 0:02:58]} 4. b3 {[%clk 0:02:59]}  c5 {[%clk 0:02:57]} 5. Bb2 {[%clk 0:02:59]}  Nc6 {[%clk 0:02:56]} 6. cxd5 {[%clk 0:02:59]}  exd5 {[%clk 0:02:57]} 7. Bb5 {[%clk 0:02:55]}  Bd6 {[%clk 0:02:58]} 8. O-O {[%clk 0:02:55]}  O-O {[%clk 0:02:58]} 9. d4 {[%clk 0:02:53]}  cxd4 {[%clk 0:02:59]} 10. Nxd4 {[%clk 0:02:42]}  Bc7 {[%clk 0:03:00]} 11. h3 {[%clk 0:02:18]}  Nxd4 {[%clk 0:02:20]} 12. Bxd4 {[%clk 0:02:17]}  Qd6 {[%clk 0:02:20]} 13. f4 {[%clk 0:02:18]}  a6 {[%clk 0:02:18]} 14. Be2 {[%clk 0:01:58]}  Ne4 {[%clk 0:02:15]} 15. Nd2 {[%clk 0:01:55]}  Ng3 {[%clk 0:01:47]} 16. Rf3 {[%clk 0:01:53]}  Qg6 {[%clk 0:01:42]} 17. Kh2 {[%clk 0:01:32]}  Nxe2 {[%clk 0:01:38]} 18. Qxe2 {[%clk 0:01:31]}  f6 {[%clk 0:01:21]} 19. Rc1 {[%clk 0:01:30]}  Qf7 {[%clk 0:01:16]} 20. Qd3 {[%clk 0:01:27]}  Re8 {[%clk 0:01:14]} 21. Rg3 {[%clk 0:01:27]}  Bd6 {[%clk 0:01:11]} 22. Nf3 {[%clk 0:01:06]}  Bd7 {[%clk 0:00:58]} 23. Nh4 {[%clk 0:01:03]}  Re4 {[%clk 0:00:59]} 24. Qc3 {[%clk 0:00:53]}  Kh8 {[%clk 0:00:47]} 25. Nf3 {[%clk 0:00:51]}  Rae8 {[%clk 0:00:43]} 26. Qa5 {[%clk 0:00:44]}  Bc6 {[%clk 0:00:38]} 27. Qd2 {[%clk 0:00:42]}  h6 {[%clk 0:00:36]} 28. a4 {[%clk 0:00:39]}  Kh7 {[%clk 0:00:36]} 29. Qd3 {[%clk 0:00:35]}  Qh5 {[%clk 0:00:36]} 30. Nd2 {[%clk 0:00:33]}  g5 {[%clk 0:00:32]} 31. Nxe4 {[%clk 0:00:27]}  dxe4 {[%clk 0:00:28]} 32. Qf1 {[%clk 0:00:26]}  Qh4 {[%clk 0:00:18]} 33. Bxf6 {[%clk 0:00:23]}  Rf8 {[%clk 0:00:19]} 34. Rg4 {[%clk 0:00:20]}  Qh5 {[%clk 0:00:19]} 35. Bd4 {[%clk 0:00:15]}  Bd7 {[%clk 0:00:20]} 36. Qe2 {[%clk 0:00:13]}  Bxg4 {[%clk 0:00:15]} 37. Qxg4 {[%clk 0:00:13]}  Qxg4 {[%clk 0:00:15]} 38. hxg4 {[%clk 0:00:14]}  gxf4 {[%clk 0:00:16]} 39. Kg1 {[%clk 0:00:13]}  f3 {[%clk 0:00:11]} 40. Rf1 {[%clk 0:00:09]}  Kg6 {[%clk 0:00:08]} 41. gxf3 {[%clk 0:00:09]}  exf3 {[%clk 0:00:09]} 42. Kf2 {[%clk 0:00:09]}  Kg5 {[%clk 0:00:08]} 43. Rg1 {[%clk 0:00:09]}  Rf7 {[%clk 0:00:07]} 44. Bb2 {[%clk 0:00:07]}  b5 {[%clk 0:00:04]} 45. axb5 {[%clk 0:00:06]}  axb5 {[%clk 0:00:05]} 46. Bd4 {[%clk 0:00:07]}  b4 {[%clk 0:00:04]} 47. Bb2 {[%clk 0:00:07]}  Rf8 {[%clk 0:00:05]} 48. Bd4 {[%clk 0:00:07]}  Rf7 {[%clk 0:00:05]} 49. Bb2 {[%clk 0:00:07]}  Bh2 {[%clk 0:00:05]} 50. Rh1 {[%clk 0:00:07]}  Bc7 {[%clk 0:00:05]} 51. Rg1 {[%clk 0:00:07]}  Bb6 {[%clk 0:00:06]} 52. Bd4 {[%clk 0:00:06]}  Bxd4 {[%clk 0:00:06]} 53. exd4 {[%clk 0:00:06]}  Kf4 {[%clk 0:00:07]} 54. Rg3 {[%clk 0:00:07]}  Ke4 {[%clk 0:00:07]} 55. g5 {[%clk 0:00:06]}  hxg5 {[%clk 0:00:06]} 56. Rxg5 {[%clk 0:00:06]}  Kxd4 {[%clk 0:00:07]} 57. Rg8 {[%clk 0:00:02]}  Kc3 {[%clk 0:00:07]} 58. Rb8 {[%clk 0:00:02]}  Kxb3 {[%clk 0:00:08]} 0-1


[Site "https://www.chess.com"]

[Event "Titled Tuesday Blitz May 25 2021"]
[White "Woodward, Andy"]
[Black "Tomb, Maroun"]
[WhiteFideId "30953499"]
[BlackFideId "5300398"]
[WhiteElo "2591"]
[BlackElo "2522"]
[Result "0-1"]
[Round "10"]
[TimeControl "180+1"]
[Date "2021.05.25"]
[WhiteClock "0:00:25"]
[BlackClock "0:00:21"]

1. d4 {[%clk 0:03:00]}  Nf6 {[%clk 0:02:57]} 2. c4 {[%clk 0:03:00]}  b5 {[%clk 0:02:57]} 3. cxb5 {[%clk 0:02:58]}  a6 {[%clk 0:02:57]} 4. bxa6 {[%clk 0:02:58]}  Bxa6 {[%clk 0:02:58]} 5. Nc3 {[%clk 0:02:58]}  d5 {[%clk 0:02:59]} 6. g3 {[%clk 0:02:57]}  e6 {[%clk 0:02:59]} 7. Bg2 {[%clk 0:02:58]}  Nbd7 {[%clk 0:02:59]} 8. Nf3 {[%clk 0:02:58]}  c5 {[%clk 0:02:59]} 9. O-O {[%clk 0:02:57]}  Be7 {[%clk 0:02:59]} 10. Bf4 {[%clk 0:02:53]}  O-O {[%clk 0:02:59]} 11. Ne5 {[%clk 0:02:48]}  Nxe5 {[%clk 0:02:58]} 12. dxe5 {[%clk 0:02:47]}  Nd7 {[%clk 0:02:57]} 13. g4 {[%clk 0:02:37]}  Qa5 {[%clk 0:02:48]} 14. Ne4 {[%clk 0:02:28]}  Rfb8 {[%clk 0:02:41]} 15. b3 {[%clk 0:02:26]}  Qb5 {[%clk 0:02:32]} 16. Nc3 {[%clk 0:02:17]}  Qb4 {[%clk 0:02:30]} 17. Qd2 {[%clk 0:02:06]}  Bb7 {[%clk 0:02:05]} 18. Rfd1 {[%clk 0:02:00]}  Nb6 {[%clk 0:02:01]} 19. a3 {[%clk 0:01:55]}  Rxa3 {[%clk 0:01:41]} 20. Rxa3 {[%clk 0:01:48]}  Qxa3 {[%clk 0:01:42]} 21. h3 {[%clk 0:01:39]}  Bc6 {[%clk 0:01:31]} 22. Qc2 {[%clk 0:01:37]}  Nd7 {[%clk 0:01:27]} 23. Rb1 {[%clk 0:01:29]}  h6 {[%clk 0:01:19]} 24. Bg3 {[%clk 0:01:18]}  Qb4 {[%clk 0:01:17]} 25. Kh2 {[%clk 0:01:06]}  Bd8 {[%clk 0:01:16]} 26. Na2 {[%clk 0:01:05]}  Qb7 {[%clk 0:01:13]} 27. b4 {[%clk 0:01:04]}  Bc7 {[%clk 0:01:02]} 28. f4 {[%clk 0:00:59]}  Qb5 {[%clk 0:00:52]} 29. Rc1 {[%clk 0:00:52]}  c4 {[%clk 0:00:50]} 30. e3 {[%clk 0:00:47]}  Ra8 {[%clk 0:00:49]} 31. Rb1 {[%clk 0:00:45]}  Ra3 {[%clk 0:00:48]} 32. Nc3 {[%clk 0:00:44]}  Qb8 {[%clk 0:00:46]} 33. b5 {[%clk 0:00:44]}  Bb7 {[%clk 0:00:45]} 34. Qb2 {[%clk 0:00:41]}  Ra5 {[%clk 0:00:45]} 35. Ne2 {[%clk 0:00:40]}  Bb6 {[%clk 0:00:45]} 36. Nd4 {[%clk 0:00:41]}  Qc7 {[%clk 0:00:45]} 37. f5 {[%clk 0:00:38]}  Nc5 {[%clk 0:00:45]} 38. Nc6 {[%clk 0:00:31]}  Ra4 {[%clk 0:00:36]} 39. fxe6 {[%clk 0:00:27]}  fxe6 {[%clk 0:00:36]} 40. Rf1 {[%clk 0:00:27]}  Nd3 {[%clk 0:00:35]} 41. Qc2 {[%clk 0:00:26]}  Ra8 {[%clk 0:00:33]} 42. Nd4 {[%clk 0:00:26]}  Bxd4 {[%clk 0:00:32]} 43. exd4 {[%clk 0:00:27]}  Qd7 {[%clk 0:00:31]} 44. Qb1 {[%clk 0:00:25]}  Ra5 {[%clk 0:00:29]} 45. b6 {[%clk 0:00:25]}  Rb5 {[%clk 0:00:29]} 46. Qd1 {[%clk 0:00:25]}  Rxb6 {[%clk 0:00:29]} 47. Qf3 {[%clk 0:00:25]}  Qe7 {[%clk 0:00:28]} 48. h4 {[%clk 0:00:23]}  Rb2 {[%clk 0:00:28]} 49. h5 {[%clk 0:00:23]}  Nb4 {[%clk 0:00:21]} 50. Ra1 {[%clk 0:00:22]}  Nc2 {[%clk 0:00:19]} 51. Rd1 {[%clk 0:00:21]}  Rb3 {[%clk 0:00:18]} 52. Qf2 {[%clk 0:00:21]}  Ne3 {[%clk 0:00:18]} 53. Ra1 {[%clk 0:00:19]}  Nxg2 {[%clk 0:00:19]} 54. Qxg2 {[%clk 0:00:19]}  c3 {[%clk 0:00:19]} 55. Rc1 {[%clk 0:00:19]}  Rb2 {[%clk 0:00:17]} 56. Rc2 {[%clk 0:00:19]}  Qb4 {[%clk 0:00:18]} 57. Be1 {[%clk 0:00:18]}  Qxd4 {[%clk 0:00:15]} 58. Bxc3 {[%clk 0:00:16]}  Qf4+ {[%clk 0:00:15]} 59. Kh3 {[%clk 0:00:15]}  Rb3 {[%clk 0:00:14]} 60. Kh4 {[%clk 0:00:14]}  Qg5+ {[%clk 0:00:12]} 61. Kh3 {[%clk 0:00:14]}  Qxe5 {[%clk 0:00:13]} 62. Qf3 {[%clk 0:00:12]}  d4 {[%clk 0:00:11]} 63. Kh4 {[%clk 0:00:10]}  Rxc3 {[%clk 0:00:11]} 64. Rxc3 {[%clk 0:00:09]}  Bxf3 {[%clk 0:00:12]} 65. Rxf3 {[%clk 0:00:08]}  Kh7 {[%clk 0:00:12]} 66. g5 {[%clk 0:00:08]}  Qxg5+ {[%clk 0:00:11]} 67. Kh3 {[%clk 0:00:09]}  Qxh5+ {[%clk 0:00:12]} 68. Kg3 {[%clk 0:00:10]}  Qxf3+ {[%clk 0:00:12]} 69. Kxf3 {[%clk 0:00:11]}  g5 {[%clk 0:00:12]} 70. Ke4 {[%clk 0:00:12]}  e5 {[%clk 0:00:13]} 71. Kxe5 {[%clk 0:00:12]}  d3 {[%clk 0:00:13]} 72. Kf6 {[%clk 0:00:13]}  d2 {[%clk 0:00:14]} 73. Kf7 {[%clk 0:00:14]}  d1=Q {[%clk 0:00:14]} 74. Kf8 {[%clk 0:00:15]}  Qf3+ {[%clk 0:00:14]} 75. Ke7 {[%clk 0:00:15]}  Qf5 {[%clk 0:00:14]} 76. Ke8 {[%clk 0:00:16]}  Qg6+ {[%clk 0:00:14]} 77. Ke7 {[%clk 0:00:17]}  g4 {[%clk 0:00:14]} 78. Kf8 {[%clk 0:00:18]}  Qg7+ {[%clk 0:00:15]} 79. Ke8 {[%clk 0:00:18]}  g3 {[%clk 0:00:15]} 80. Kd8 {[%clk 0:00:19]}  Kg6 {[%clk 0:00:16]} 81. Ke8 {[%clk 0:00:19]}  Kf6 {[%clk 0:00:17]} 82. Kd8 {[%clk 0:00:20]}  Ke6 {[%clk 0:00:17]} 83. Ke8 {[%clk 0:00:21]}  h5 {[%clk 0:00:18]} 84. Kd8 {[%clk 0:00:21]}  h4 {[%clk 0:00:19]} 85. Kc8 {[%clk 0:00:21]}  h3 {[%clk 0:00:20]} 86. Kb8 {[%clk 0:00:22]}  h2 {[%clk 0:00:21]} 87. Kc8 {[%clk 0:00:23]}  g2 {[%clk 0:00:21]} 88. Kb8 {[%clk 0:00:24]}  Kd6 {[%clk 0:00:22]} 89. Ka8 {[%clk 0:00:25]}  Kc6 {[%clk 0:00:21]} 90. Kb8 {[%clk 0:00:25]}  Qb7# {[%clk 0:00:21]} 0-1


[Site "https://www.chess.com"]

[Event "Titled Tuesday Blitz May 25 2021"]
[White "Yuan, Qingyu"]
[Black "Quintin Navarro, Alberto"]
[WhiteFideId "8609772"]
[BlackFideId "2292688"]
[WhiteElo "2359"]
[BlackElo "2289"]
[Result "1-0"]
[Round "10"]
[TimeControl "180+1"]
[Date "2021.05.25"]
[WhiteClock "0:00:06"]
[BlackClock "0:00:01"]

1. e4 {[%clk 0:03:00]}  e5 {[%clk 0:03:00]} 2. Nf3 {[%clk 0:03:01]}  Nc6 {[%clk 0:03:00]} 3. Bc4 {[%clk 0:03:00]}  Nf6 {[%clk 0:03:00]} 4. Ng5 {[%clk 0:03:01]}  d5 {[%clk 0:03:00]} 5. exd5 {[%clk 0:03:02]}  Na5 {[%clk 0:03:00]} 6. Bb5+ {[%clk 0:03:02]}  c6 {[%clk 0:03:01]} 7. dxc6 {[%clk 0:03:03]}  bxc6 {[%clk 0:03:02]} 8. Bd3 {[%clk 0:03:03]}  Ng4 {[%clk 0:03:00]} 9. Nf3 {[%clk 0:02:59]}  f5 {[%clk 0:02:24]} 10. h3 {[%clk 0:02:59]}  e4 {[%clk 0:02:24]} 11. hxg4 {[%clk 0:02:56]}  exd3 {[%clk 0:02:24]} 12. cxd3 {[%clk 0:02:44]}  fxg4 {[%clk 0:02:23]} 13. Qe2+ {[%clk 0:02:39]}  Be7 {[%clk 0:02:22]} 14. Ne5 {[%clk 0:02:36]}  Qd5 {[%clk 0:02:16]} 15. Qe4 {[%clk 0:02:23]}  Be6 {[%clk 0:02:06]} 16. Nc3 {[%clk 0:02:18]}  Qxe4+ {[%clk 0:02:01]} 17. dxe4 {[%clk 0:02:17]}  Bf6 {[%clk 0:01:58]} 18. Nd3 {[%clk 0:01:54]}  O-O-O {[%clk 0:01:56]} 19. Nc5 {[%clk 0:01:53]}  Bf7 {[%clk 0:01:48]} 20. d3 {[%clk 0:01:03]}  Bd4 {[%clk 0:01:19]} 21. N3a4 {[%clk 0:01:00]}  Nb7 {[%clk 0:01:12]} 22. Nxb7 {[%clk 0:00:42]}  Kxb7 {[%clk 0:01:12]} 23. Ke2 {[%clk 0:00:42]}  h5 {[%clk 0:00:58]} 24. Be3 {[%clk 0:00:39]}  h4 {[%clk 0:00:54]} 25. Bg5 {[%clk 0:00:30]}  Bf6 {[%clk 0:00:50]} 26. Be3 {[%clk 0:00:29]}  h3 {[%clk 0:00:47]} 27. gxh3 {[%clk 0:00:23]}  gxh3 {[%clk 0:00:45]} 28. Nc5+ {[%clk 0:00:24]}  Kc8 {[%clk 0:00:39]} 29. Rag1 {[%clk 0:00:23]}  Bxb2 {[%clk 0:00:26]} 30. Rg3 {[%clk 0:00:24]}  Bxa2 {[%clk 0:00:21]} 31. Rgxh3 {[%clk 0:00:22]}  Rxh3 {[%clk 0:00:22]} 32. Rxh3 {[%clk 0:00:23]}  a5 {[%clk 0:00:18]} 33. f4 {[%clk 0:00:20]}  Bb1 {[%clk 0:00:16]} 34. Bd2 {[%clk 0:00:16]}  Ba3 {[%clk 0:00:14]} 35. Na4 {[%clk 0:00:14]}  Bc2 {[%clk 0:00:12]} 36. Nb6+ {[%clk 0:00:12]}  Kb7 {[%clk 0:00:12]} 37. Bxa5 {[%clk 0:00:11]}  Rd4 {[%clk 0:00:08]} 38. Bc3 {[%clk 0:00:08]}  Rd6 {[%clk 0:00:05]} 39. Nc4 {[%clk 0:00:08]}  Rg6 {[%clk 0:00:03]} 40. Nxa3 {[%clk 0:00:08]}  Rg2+ {[%clk 0:00:04]} 41. Ke3 {[%clk 0:00:08]}  Bb3 {[%clk 0:00:03]} 42. Nc4 {[%clk 0:00:07]}  Kc7 {[%clk 0:00:02]} 43. Bxg7 {[%clk 0:00:07]}  Rxg7 {[%clk 0:00:01]} 44. Ne5 {[%clk 0:00:06]} 1-0


[Site "https://www.chess.com"]

[Event "Titled Tuesday Blitz May 25 2021"]
[White "davigator"]
[Black "Do Valle Cardoso, Lucas"]
[BlackFideId "2163144"]
[WhiteElo "2441"]
[BlackElo "2378"]
[Result "0-1"]
[Round "10"]
[TimeControl "180+1"]
[Date "2021.05.25"]
[WhiteClock "0:00:09"]
[BlackClock "0:00:07"]

1. e4 {[%clk 0:03:00]}  e5 {[%clk 0:02:57]} 2. Nf3 {[%clk 0:03:00]}  Nc6 {[%clk 0:02:57]} 3. Bb5 {[%clk 0:03:00]}  f5 {[%clk 0:02:56]} 4. d3 {[%clk 0:02:59]}  fxe4 {[%clk 0:02:57]} 5. dxe4 {[%clk 0:02:59]}  Nf6 {[%clk 0:02:57]} 6. O-O {[%clk 0:02:59]}  d6 {[%clk 0:02:57]} 7. Nc3 {[%clk 0:02:56]}  Be7 {[%clk 0:02:58]} 8. h3 {[%clk 0:02:49]}  O-O {[%clk 0:02:58]} 9. Bc4+ {[%clk 0:02:49]}  Kh8 {[%clk 0:02:58]} 10. Ng5 {[%clk 0:02:50]}  Qe8 {[%clk 0:02:58]} 11. Ne6 {[%clk 0:02:50]}  Bxe6 {[%clk 0:02:58]} 12. Bxe6 {[%clk 0:02:50]}  Qg6 {[%clk 0:02:59]} 13. Bf5 {[%clk 0:02:26]}  Qf7 {[%clk 0:02:58]} 14. Bg4 {[%clk 0:02:25]}  Nxg4 {[%clk 0:02:44]} 15. hxg4 {[%clk 0:02:25]}  Rae8 {[%clk 0:02:35]} 16. Be3 {[%clk 0:02:24]}  Qg6 {[%clk 0:02:33]} 17. Nd5 {[%clk 0:02:19]}  Bd8 {[%clk 0:02:31]} 18. f3 {[%clk 0:02:18]}  Ne7 {[%clk 0:02:20]} 19. Nc3 {[%clk 0:02:13]}  a6 {[%clk 0:02:06]} 20. Qd2 {[%clk 0:02:06]}  Ng8 {[%clk 0:01:54]} 21. Rae1 {[%clk 0:02:01]}  h6 {[%clk 0:01:51]} 22. g3 {[%clk 0:01:52]}  Nf6 {[%clk 0:01:49]} 23. Kg2 {[%clk 0:01:51]}  Nh7 {[%clk 0:01:43]} 24. Rh1 {[%clk 0:01:47]}  Bg5 {[%clk 0:01:39]} 25. Nd5 {[%clk 0:01:40]}  Rf7 {[%clk 0:01:34]} 26. Ref1 {[%clk 0:01:10]}  Ref8 {[%clk 0:01:27]} 27. Rf2 {[%clk 0:01:09]}  Bxe3 {[%clk 0:01:00]} 28. Nxe3 {[%clk 0:01:04]}  Ng5 {[%clk 0:00:55]} 29. Rhf1 {[%clk 0:01:00]}  Rxf3 {[%clk 0:00:50]} 30. Rxf3 {[%clk 0:00:59]}  Qxe4 {[%clk 0:00:43]} 31. Nf5 {[%clk 0:00:57]}  Nxf3 {[%clk 0:00:25]} 32. Rxf3 {[%clk 0:00:57]}  Qxg4 {[%clk 0:00:24]} 33. Qf2 {[%clk 0:00:42]}  Qe4 {[%clk 0:00:15]} 34. Kh2 {[%clk 0:00:39]}  g6 {[%clk 0:00:09]} 35. Nh4 {[%clk 0:00:38]}  Rxf3 {[%clk 0:00:08]} 36. Nxf3 {[%clk 0:00:37]}  Kg7 {[%clk 0:00:06]} 37. c3 {[%clk 0:00:37]}  g5 {[%clk 0:00:03]} 38. Ng1 {[%clk 0:00:35]}  b5 {[%clk 0:00:04]} 39. Qa7 {[%clk 0:00:24]}  Qc6 {[%clk 0:00:04]} 40. Qe3 {[%clk 0:00:21]}  Kg6 {[%clk 0:00:04]} 41. Nf3 {[%clk 0:00:21]}  Qc4 {[%clk 0:00:03]} 42. a3 {[%clk 0:00:17]}  Qd5 {[%clk 0:00:03]} 43. Nd2 {[%clk 0:00:17]}  c5 {[%clk 0:00:03]} 44. Ne4 {[%clk 0:00:16]}  Qd1 {[%clk 0:00:02]} 45. Kg2 {[%clk 0:00:15]}  Qc2+ {[%clk 0:00:02]} 46. Nf2 {[%clk 0:00:14]}  c4 {[%clk 0:00:02]} 47. Qe4+ {[%clk 0:00:14]}  Qxe4+ {[%clk 0:00:02]} 48. Nxe4 {[%clk 0:00:14]}  d5 {[%clk 0:00:03]} 49. Nc5 {[%clk 0:00:14]}  d4 {[%clk 0:00:03]} 50. Kf3 {[%clk 0:00:13]}  Kf5 {[%clk 0:00:03]} 51. Nxa6 {[%clk 0:00:11]}  e4+ {[%clk 0:00:01]} 52. Ke2 {[%clk 0:00:11]}  d3+ {[%clk 0:00:01]} 53. Ke3 {[%clk 0:00:11]}  h5 {[%clk 0:00:02]} 54. Nc5 {[%clk 0:00:11]}  h4 {[%clk 0:00:03]} 55. gxh4 {[%clk 0:00:11]}  gxh4 {[%clk 0:00:03]} 56. Nxe4 {[%clk 0:00:11]}  h3 {[%clk 0:00:03]} 57. Nf2 {[%clk 0:00:12]}  h2 {[%clk 0:00:04]} 58. Nh1 {[%clk 0:00:12]}  Kg4 {[%clk 0:00:04]} 59. Kf2 {[%clk 0:00:10]}  Kh3 {[%clk 0:00:03]} 60. Ng3 {[%clk 0:00:09]}  d2 {[%clk 0:00:03]} 61. Ke2 {[%clk 0:00:08]}  Kxg3 {[%clk 0:00:03]} 62. Kxd2 {[%clk 0:00:09]}  h1=Q {[%clk 0:00:04]} 63. b3 {[%clk 0:00:09]}  Qe4 {[%clk 0:00:04]} 64. bxc4 {[%clk 0:00:08]}  bxc4 {[%clk 0:00:05]} 65. Kc1 {[%clk 0:00:08]}  Qd3 {[%clk 0:00:06]} 66. Kb2 {[%clk 0:00:08]}  Qd2+ {[%clk 0:00:06]} 67. Kb1 {[%clk 0:00:08]}  Qxc3 {[%clk 0:00:06]} 68. a4 {[%clk 0:00:09]}  Qb3+ {[%clk 0:00:06]} 69. Ka1 {[%clk 0:00:09]}  c3 {[%clk 0:00:06]} 70. a5 {[%clk 0:00:09]}  Qb2# {[%clk 0:00:07]} 0-1


[Site "https://www.chess.com"]